lending/lending_fUSD_20241025
["ID","MTS","AMOUNT","RATE_DAILY","PERIOD"]
[340831872,1729895440036,-630.062925,0.0006,120]
[340831873,1729895440045,-630.062925,0.0006,120]
[340831874,1729895440054,-630.062925,0.0006,120]
[340831875,1729895440064,-630.062925,0.0006,120]
[340831876,1729895440075,-565.584961,0.0006,120]
[340831877,1729895440084,-565.584961,0.0006,120]
[340831878,1729895440093,-565.584961,0.0006,120]
[340831879,1729895440103,-565.584961,0.0006,120]
[340831880,1729895440112,-565.584961,0.0006,120]
[340831881,1729895440122,-565.584961,0.0006,120]
[340831882,1729895440131,-151.0,0.0006,120]
[340831883,1729895440140,-186.254273,0.0006,120]
[340831884,1729895440149,-152.393785,0.0006,120]
[340831885,1729895440159,-257.854953,0.0006,120]
[340831886,1729895440168,-151.0,0.0006,120]
[340831887,1729895440177,-151.0,0.0006,120]
[340831888,1729895440186,-500.0,0.00060005,120]
[340831889,1729895440195,-500.0,0.00060198,120]
[340831890,1729895440205,-2110.0,0.000602,30]
[340831891,1729895440214,-742.0,0.000602,13]
[340831892,1729895440223,-4742.44216325,0.00060279,14]
[340831893,1729895440233,-500.0,0.00060288,120]
[340831894,1729895440242,-1047.208,0.00060289,2]
[340831895,1729895440256,-500.0,0.00060308,120]
[340831896,1729895440266,-565.584961,0.0006036,120]
[340831897,1729895440275,-565.584969,0.0006036,120]
[340831898,1729895440284,-151.0,0.0006036,120]
[340831899,1729895440295,-37939.537306,0.0006036,14]
[340831900,1729895440304,-36736.5638001,0.0006036,12]
[340831901,1729895440314,-150.0,0.00060369,120]
[340831902,1729895440324,-124486.13564563,0.0006037,2]
[340831903,1729895440333,-151.0,0.0006037,120]
[340831904,1729895440343,-151.0,0.0006037,120]
[340831905,1729895440352,-219.302518,0.0006037,120]
[340831906,1729895440362,-151.0,0.0006037,120]
[340831907,1729895440371,-151.0,0.0006037,120]
[340831908,1729895440380,-219.302518,0.0006037,120]
[340831909,1729895440390,-151.0,0.0006037,120]
[340831910,1729895440399,-630.062925,0.0006037,120]
[340831911,1729895440409,-630.062925,0.0006037,120]
[340831912,1729895440419,-151.0,0.0006037,120]
[340831913,1729895440429,-197.46094837,0.0006037,120]
[340831914,1729895440438,-7347.31276002,0.00060379,12]
[340831915,1729895440447,-510.71362825,0.00060389,2]
[340831916,1729895440456,-500.0,0.00060389,120]
[340831917,1729895440465,-498.15359995,0.00060389,120]
[340831918,1729895440475,-500.0,0.00060389,120]
[340831919,1729895440484,-500.0,0.00060389,120]
[340831920,1729895440494,-500.0,0.00060389,2]
[340831921,1729895440503,-395.32459142,0.00060389,120]
[340831922,1729895440512,-315.15497997,0.00060389,120]
[340831923,1729895440522,-500.0,0.00060389,120]
[340831924,1729895440531,-500.0,0.00060389,120]
[340831925,1729895440540,-500.0,0.00060389,120]
[340831926,1729895440549,-500.0,0.00060389,120]
[340831927,1729895440559,-500.0,0.00060389,120]
[340831928,1729895440568,-217.87250387,0.00060389,120]
[340831929,1729895440577,-500.0,0.00060389,120]
[340831930,1729895440586,-500.0,0.00060389,120]
[340831931,1729895440595,-500.0,0.00060389,120]
[340831932,1729895440605,-500.0,0.00060389,120]
[340831933,1729895440614,-543.45175906,0.00060389,120]
[340831934,1729895440623,-500.0,0.00060389,120]
[340831935,1729895440633,-500.0,0.00060389,120]
[340831936,1729895440642,-500.0,0.00060389,120]
[340831937,1729895440651,-500.0,0.00060389,120]
[340831938,1729895440660,-500.0,0.00060389,120]
[340831939,1729895440669,-500.0,0.00060389,120]
[340831940,1729895440678,-500.0,0.00060389,120]
[340831941,1729895440687,-500.0,0.00060389,120]
[340831942,1729895440696,-500.0,0.00060389,120]
[340831943,1729895440706,-500.0,0.00060389,120]
[340831944,1729895440715,-1000.0,0.00060389,120]
[340831945,1729895440724,-500.0,0.00060389,120]
[340831946,1729895440733,-500.0,0.00060389,120]
[340831947,1729895440742,-500.0,0.00060389,120]
[340831948,1729895440752,-500.0,0.00060389,120]
[340831949,1729895440761,-500.0,0.00060398,120]
[340831950,1729895440770,-3673.65638001,0.0006049,12]
[340831951,1729895440779,-1679.41600657,0.000605,120]
[340831952,1729895440789,-6110.4788773,0.000605,120]
[340831953,1729895440798,-5173.46988568,0.000605,120]
[340831954,1729895440807,-302.76838732,0.00060665,120]
[340831955,1729895440817,-2110.0,0.000607,30]
[340831956,1729895440827,-700.0,0.000607,22]
[340831957,1729895440836,-150.0,0.00060727,30]
[340831958,1729895440845,-150.0,0.00060732,30]
[340831959,1729895440854,-150.0,0.00060733,30]
[340831960,1729895440864,-150.0,0.00060751,30]
[340831961,1729895440873,-150.0,0.0006076,30]
[340831962,1729895440883,-150.0,0.00060764,30]
[340831963,1729895440892,-150.0,0.0006077,30]
[340831964,1729895440902,-150.0,0.00060776,30]
[340831965,1729895440911,-150.0,0.00060781,30]
[340831966,1729895440920,-150.0,0.00060781,30]
[340831967,1729895440930,-150.0,0.00060797,30]
[340831968,1729895440939,-150.0,0.00060799,30]
[340831969,1729895440948,-2180.85250825,0.000608,15]
[340831970,1729895440956,-1000.0,0.000608,22]
[340831971,1729895440966,-150.0,0.00060805,30]
[340831972,1729895440975,-3673.65638001,0.00060805,12]
[340831973,1729895440984,-150.0,0.00060815,30]
[340831974,1729895440993,-150.0,0.00060828,30]
[340831975,1729895441003,-150.0,0.00060841,30]
[340831976,1729895441012,-150.0,0.00060841,30]
[340831977,1729895441021,-150.0,0.00060854,30]
[340831978,1729895441030,-150.0,0.00060862,30]
[340831979,1729895441040,-150.0,0.00060863,30]
[340831980,1729895441049,-150.0,0.00060872,30]
[340831981,1729895441058,-150.0,0.00060886,30]
[340831982,1729895441068,-77146.7839802,0.0006089,12]
[340831983,1729895441078,-151.0,0.0006089,120]
[340831984,1729895441087,-253.39287494,0.00060897,30]
[340831985,1729895441096,-1061.87,0.00060899,120]
[340831986,1729895441105,-218.81540517,0.00060899,120]
[340831987,1729895441114,-500.0,0.00060899,120]
[340831988,1729895441124,-500.0,0.00060899,120]
[340831989,1729895441133,-500.0,0.00060899,120]
[340831990,1729895441142,-7500.0,0.00060899,120]
[340831991,1729895441151,-25924.44496253,0.000609,64]
[340831992,1729895441161,-10000.0,0.000609,120]
[340831993,1729895441170,-150.0,0.000609,120]
[340831994,1729895441179,-167.21705786,0.000609,83]
[340831995,1729895441188,-150.0,0.000609,30]
[340831996,1729895441197,-502.955184,0.000609,120]
[340831997,1729895441206,-151.0,0.000609,120]
[340831998,1729895441215,-151.0,0.000609,120]
[340831999,1729895441224,-151.0,0.000609,120]
[340832000,1729895441234,-237579.59724303,0.000609,60]
[340832001,1729895441243,-151.0,0.000609,120]
[340832002,1729895441252,-200.002281,0.000609,120]
[340832003,1729895441262,-216.8376,0.000609,120]
[340832004,1729895441271,-200.002281,0.000609,120]
[340832005,1729895441280,-216.8376,0.000609,120]
[340832006,1729895441289,-151.0,0.000609,120]
[340832007,1729895441298,-151.0,0.000609,120]
[340832008,1729895441307,-1200.0,0.000609,22]
[340832009,1729895441316,-151.0,0.000609,120]
[340832010,1729895441326,-262.955558,0.000609,120]
[340832011,1729895441335,-262.955558,0.000609,120]
[340832012,1729895441344,-151.87304,0.000609,120]
[340832013,1729895441352,-151.0,0.000609,120]
[340832014,1729895441361,-151.0,0.000609,120]
[340832015,1729895441371,-637.54791413,0.000609,2]
[340832016,1729895441379,-219.302518,0.000609,120]
[340832017,1729895441389,-151.0,0.000609,120]
[340832018,1729895441398,-1530.54168313,0.000609,30]
[340832019,1729895441407,-219.302518,0.000609,120]
[340832020,1729895441416,-151.0,0.000609,120]
[340832021,1729895441425,-630.062925,0.000609,120]
[340832022,1729895441433,-630.062925,0.000609,120]
[340832023,1729895441443,-1542.29341572,0.000609,2]
[340832024,1729895441452,-173.88794018,0.000609,2]
[340832025,1729895441461,-13867.00949456,0.000609,2]
[340832026,1729895441470,-151.0,0.000609,120]
[340832027,1729895441479,-150.0,0.00060905,30]
[340832028,1729895441488,-169.93,0.00060906,120]
[340832029,1729895441497,-150.0,0.0006095,30]
[340832030,1729895441506,-150.0,0.00060957,30]
[340832031,1729895441515,-3233.20155351,0.0006096,60]
[340832032,1729895441524,-3673.65638001,0.0006096,12]
[340832033,1729895441533,-3673.65638001,0.00060969,12]
[340832034,1729895441542,-7347.31276002,0.0006097,12]
[340832035,1729895441552,-3673.65638001,0.0006097,12]
[340832036,1729895441561,-500.0,0.00060973,14]
[340832037,1729895441571,-3673.65638001,0.00060977,12]
[340832038,1729895441579,-500.0,0.00060978,120]
[340832039,1729895441588,-500.0,0.00060978,120]
[340832040,1729895441598,-151.0,0.00060978,120]
[340832041,1729895441607,-151.0,0.00060978,120]
[340832042,1729895441616,-287.917486,0.00060978,120]
[340832043,1729895441625,-3673.65638001,0.00060978,12]
[340832044,1729895441634,-7347.31276002,0.00060978,12]
[340832045,1729895441643,-500.0,0.00060979,120]
[340832046,1729895441652,-528.95,0.00060979,120]
[340832047,1729895441661,-500.0,0.00060979,120]
[340832048,1729895441670,-500.0,0.00060979,120]
[340832049,1729895441678,-500.0,0.00060979,120]
[340832050,1729895441687,-500.0,0.00060979,120]
[340832051,1729895441697,-529.41307071,0.00060979,120]
[340832052,1729895441706,-500.0,0.0006098,120]
[340832053,1729895441715,-633.52,0.0006098,120]
[340832054,1729895441724,-500.0,0.0006098,120]
[340832055,1729895441733,-528.15,0.0006098,120]
[340832056,1729895441741,-500.0,0.0006098,120]
[340832057,1729895441750,-303.92312304,0.0006098,120]
[340832058,1729895441759,-500.0,0.0006098,55]
[340832059,1729895441768,-500.0,0.0006098,120]
[340832060,1729895441776,-500.0,0.0006098,120]
[340832061,1729895441785,-6492.83,0.0006098,120]
[340832062,1729895441794,-500.0,0.0006098,120]
[340832063,1729895441803,-500.0,0.0006098,120]
[340832064,1729895441813,-500.0,0.0006098,120]
[340832065,1729895441822,-500.0,0.0006098,120]
[340832066,1729895441831,-500.0,0.0006098,120]
[340832067,1729895441839,-500.0,0.0006098,120]
[340832068,1729895441848,-500.0,0.0006098,120]
[340832069,1729895441857,-500.0,0.0006098,120]
[340832070,1729895441866,-500.0,0.0006098,120]
[340832071,1729895441875,-555.79221386,0.0006098,120]
[340832072,1729895441884,-500.0,0.0006098,120]
[340832073,1729895441893,-500.0,0.0006098,21]
[340832074,1729895441902,-500.0,0.0006098,120]
[340832075,1729895441911,-500.0,0.0006098,120]
[340832076,1729895441920,-500.0,0.0006098,120]
[340832077,1729895441929,-500.0,0.0006098,120]
[340832078,1729895441938,-500.0,0.0006098,120]
[340832079,1729895441951,-500.0,0.0006098,120]
[340832080,1729895441960,-500.0,0.0006098,4]
[340832081,1729895441969,-500.0,0.0006098,120]
[340832082,1729895441978,-500.0,0.0006098,120]
[340832083,1729895441987,-476.0811765,0.0006098,120]
[340832084,1729895441996,-219.302518,0.0006098,120]
[340832085,1729895442005,-175.085721,0.0006098,120]
[340832086,1729895442014,-500.0,0.0006098,120]
[340832087,1729895442023,-500.0,0.0006098,120]
[340832088,1729895442032,-219.302518,0.0006098,120]
[340832089,1729895442040,-500.0,0.0006098,120]
[340832090,1729895442049,-151.0,0.0006098,120]
[340832091,1729895442057,-500.0,0.0006098,120]
[340832092,1729895442066,-630.062925,0.0006098,120]
[340832093,1729895442077,-1000.0,0.0006098,120]
[340832094,1729895442086,-630.062925,0.0006098,120]
[340832095,1729895442095,-500.0,0.0006098,120]
[340832096,1729895442104,-500.0,0.0006098,120]
[340832097,1729895442113,-500.0,0.0006098,120]
[340832098,1729895442122,-500.0,0.0006098,120]
[340832099,1729895442131,-866.98,0.0006098,120]
[340832100,1729895442140,-3404.18042837,0.0006098,120]
[340832101,1729895442149,-536.15223749,0.0006098,120]
[340832102,1729895442158,-500.0,0.0006098,120]
[340832103,1729895442166,-500.0,0.0006098,120]
[340832104,1729895442175,-500.0,0.0006098,120]
[340832105,1729895442184,-203.142974,0.0006098,120]
[340832106,1729895442193,-500.0,0.0006098,120]
[340832107,1729895442202,-150.0,0.00060985,30]
[340832108,1729895442211,-150.0,0.00060986,30]
[340832109,1729895442221,-150.0,0.00060986,30]
[340832110,1729895442230,-500.0,0.00060987,120]
[340832111,1729895442239,-500.0,0.00060987,120]
[340832112,1729895442250,-500.0,0.00060987,120]
[340832113,1729895442259,-500.0,0.00060987,120]
[340832114,1729895442268,-500.0,0.00060987,120]
[340832115,1729895442277,-500.0,0.00060987,120]
[340832116,1729895442286,-500.0,0.00060987,120]
[340832117,1729895442297,-500.0,0.00060987,120]
[340832118,1729895442306,-500.0,0.00060987,120]
[340832119,1729895442315,-500.0,0.00060987,120]
[340832120,1729895442328,-500.0,0.00060987,120]
[340832121,1729895442338,-151.0,0.00060988,120]
[340832122,1729895442347,-187.0,0.00060988,120]
[340832123,1729895442356,-151.0,0.00060988,120]
[340832124,1729895442365,-151.0,0.00060988,120]
[340832125,1729895442374,-200.002281,0.00060988,120]
[340832126,1729895442384,-216.8376,0.00060988,120]
[340832127,1729895442492,-200.002281,0.00060988,120]
[340832128,1729895442503,-216.8376,0.00060988,120]
[340832129,1729895442513,-151.0,0.00060988,120]
[340832130,1729895442523,-151.0,0.00060988,120]
[340832131,1729895442532,-262.955558,0.00060988,120]
[340832132,1729895442541,-262.955558,0.00060988,120]
[340832133,1729895442550,-151.0,0.00060988,120]
[340832134,1729895442560,-151.0,0.00060988,120]
[340832135,1729895442569,-151.0,0.00060988,120]
[340832136,1729895442579,-151.0,0.00060988,120]
[340832137,1729895442588,-851.8042737,0.00060989,7]
[340832138,1729895442597,-500.0,0.00060989,120]
[340832139,1729895442607,-500.0,0.00060989,120]
[340832140,1729895442616,-151.0,0.00060989,120]
[340832141,1729895442625,-500.0,0.00060989,120]
[340832142,1729895442635,-151.0,0.00060989,120]
[340832143,1729895442644,-155.895834,0.00060989,120]
[340832144,1729895442653,-500.0,0.00060989,120]
[340832145,1729895442662,-155.852258,0.00060989,120]
[340832146,1729895442671,-152.462112,0.00060989,120]
[340832147,1729895442681,-151.0,0.00060989,120]
[340832148,1729895442690,-151.0,0.00060989,120]
[340832149,1729895442699,-500.0,0.00060989,120]
[340832150,1729895442708,-500.0,0.00060989,120]
[340832151,1729895442718,-151.0,0.00060989,120]
[340832152,1729895442727,-151.0,0.00060989,120]
[340832153,1729895442736,-500.0,0.00060989,120]
[340832154,1729895442745,-538.97598774,0.00060989,120]
[340832155,1729895442755,-500.0,0.00060989,120]
[340832156,1729895442763,-500.0,0.00060989,120]
[340832157,1729895442773,-151.0,0.00060989,120]
[340832158,1729895442782,-603.64770457,0.00060989,120]
[340832159,1729895442791,-500.0,0.00060989,120]
[340832160,1729895442800,-540.04228863,0.00060989,120]
[340832161,1729895442809,-500.0,0.00060989,120]
[340832162,1729895442818,-548.1338779,0.00060989,120]
[340832163,1729895442828,-679.15,0.00060989,120]
[340832164,1729895442837,-151.0,0.00060989,120]
[340832165,1729895442847,-531.41349098,0.00060989,120]
[340832166,1729895442855,-500.0,0.00060989,120]
[340832167,1729895442864,-500.0,0.00060989,120]
[340832168,1729895442873,-151.0,0.00060989,120]
[340832169,1729895442882,-200.002281,0.00060989,120]
[340832170,1729895442891,-500.0,0.00060989,120]
[340832171,1729895442901,-216.8376,0.00060989,120]
[340832172,1729895442910,-200.002281,0.00060989,120]
[340832173,1729895442919,-216.8376,0.00060989,120]
[340832175,1729895442928,-151.0,0.00060989,120]
[340832176,1729895442937,-500.0,0.00060989,120]
[340832177,1729895442946,-151.0,0.00060989,120]
[340832178,1729895442955,-262.955558,0.00060989,120]
[340832179,1729895442965,-500.0,0.00060989,120]
[340832180,1729895442974,-262.955558,0.00060989,120]
[340832181,1729895442983,-151.0,0.00060989,120]
[340832182,1729895442992,-151.0,0.00060989,120]
[340832183,1729895443000,-500.0,0.00060989,120]
[340832184,1729895443010,-151.0,0.00060989,120]
[340832185,1729895443019,-151.0,0.00060989,120]
[340832186,1729895443028,-225.96263111,0.00060989,120]
[340832187,1729895443038,-1061.87,0.00060989,120]
[340832188,1729895443047,-1061.87,0.00060989,120]
[340832189,1729895443056,-500.0,0.00060989,7]
[340832190,1729895443065,-500.0,0.00060989,120]
[340832191,1729895443075,-500.0,0.00060989,120]
[340832192,1729895443084,-219.302518,0.00060989,120]
[340832193,1729895443093,-500.0,0.00060989,120]
[340832194,1729895443102,-219.302518,0.00060989,120]
[340832195,1729895443111,-197.731573,0.00060989,120]
[340832196,1729895443121,-500.0,0.00060989,120]
[340832197,1729895443130,-500.0,0.00060989,5]
[340832198,1729895443139,-630.062925,0.00060989,120]
[340832199,1729895443148,-230.66,0.00060989,120]
[340832200,1729895443158,-630.062925,0.00060989,120]
[340832201,1729895443168,-500.0,0.00060989,120]
[340832202,1729895443177,-434.89139365,0.00060989,120]
[340832203,1729895443186,-500.0,0.00060989,120]
[340832204,1729895443196,-500.0,0.00060989,120]
[340832205,1729895443206,-500.0,0.00060989,120]
[340832206,1729895443215,-500.0,0.00060989,120]
[340832207,1729895443224,-7500.0,0.00060989,120]
[340832208,1729895443234,-629.77964931,0.00060989,120]
[340832209,1729895443243,-3124.0383718,0.00060989,120]
[340832210,1729895443252,-961.0,0.00060989,25]
[340832211,1729895443261,-5050.0,0.0006099,22]
[340832212,1729895443271,-5050.0,0.0006099,23]
[340832213,1729895443280,-5050.0,0.0006099,24]
[340832214,1729895443289,-5050.0,0.0006099,33]
[340832215,1729895443298,-151.0,0.0006099,120]
[340832216,1729895443307,-151.0,0.0006099,120]
[340832217,1729895443316,-151.0,0.0006099,120]
[340832218,1729895443327,-151.0,0.0006099,120]
[340832219,1729895443337,-151.0,0.0006099,120]
[340832220,1729895443346,-151.0,0.0006099,120]
[340832221,1729895443356,-151.0,0.0006099,120]
[340832222,1729895443365,-151.0,0.0006099,120]
[340832223,1729895443375,-151.0,0.0006099,120]
[340832224,1729895443384,-152.657806,0.0006099,120]
[340832225,1729895443394,-151.0,0.0006099,120]
[340832226,1729895443403,-151.0,0.0006099,120]
[340832227,1729895443412,-251.232711,0.0006099,120]
[340832228,1729895443423,-151.0,0.0006099,120]
[340832229,1729895443433,-151.0,0.0006099,120]
[340832230,1729895443442,-151.0,0.0006099,120]
[340832231,1729895443452,-152.433223,0.0006099,120]
[340832232,1729895443462,-151.0,0.0006099,120]
[340832233,1729895443471,-151.0,0.0006099,120]
[340832234,1729895443481,-151.0,0.0006099,120]
[340832235,1729895443490,-151.0,0.0006099,120]
[340832236,1729895443500,-151.0,0.0006099,120]
[340832237,1729895443509,-151.0,0.0006099,120]
[340832238,1729895443519,-151.0,0.0006099,120]
[340832239,1729895443528,-205.507858,0.0006099,120]
[340832240,1729895443538,-151.0,0.0006099,120]
[340832241,1729895443547,-205.507858,0.0006099,120]
[340832242,1729895443556,-151.0,0.0006099,120]
[340832243,1729895443565,-151.0,0.0006099,120]
[340832244,1729895443577,-151.0,0.0006099,120]
[340832245,1729895443586,-151.0,0.0006099,120]
[340832246,1729895443596,-263.048346,0.0006099,120]
[340832247,1729895443605,-151.0,0.0006099,120]
[340832248,1729895443614,-151.0,0.0006099,120]
[340832249,1729895443624,-151.0,0.0006099,120]
[340832250,1729895443634,-151.0,0.0006099,120]
[340832251,1729895443643,-151.0,0.0006099,120]
[340832252,1729895443653,-151.0,0.0006099,120]
[340832253,1729895443662,-151.0,0.0006099,120]
[340832254,1729895443672,-151.0,0.0006099,120]
[340832255,1729895443682,-151.0,0.0006099,120]
[340832256,1729895443691,-151.0,0.0006099,120]
[340832257,1729895443700,-170.456535,0.0006099,120]
[340832258,1729895443709,-151.0,0.0006099,120]
[340832259,1729895443718,-242.4442,0.0006099,120]
[340832260,1729895443726,-151.0,0.0006099,120]
[340832261,1729895443736,-151.0,0.0006099,120]
[340832262,1729895443745,-227.841428,0.0006099,120]
[340832263,1729895443754,-173.995129,0.0006099,120]
[340832264,1729895443764,-151.0,0.0006099,120]
[340832265,1729895443773,-151.0,0.0006099,120]
[340832266,1729895443783,-151.0,0.0006099,120]
[340832267,1729895443793,-200.002281,0.0006099,120]
[340832268,1729895443802,-200.002281,0.0006099,120]
[340832269,1729895443812,-200.002281,0.0006099,120]
[340832270,1729895443823,-216.8376,0.0006099,120]
[340832271,1729895443832,-216.8376,0.0006099,120]
[340832272,1729895443842,-216.8376,0.0006099,120]
[340832273,1729895443851,-200.002281,0.0006099,120]
[340832274,1729895443862,-200.002281,0.0006099,120]
[340832275,1729895443873,-200.002281,0.0006099,120]
[340832276,1729895443882,-216.8376,0.0006099,120]
[340832277,1729895443892,-216.8376,0.0006099,120]
[340832278,1729895443901,-216.8376,0.0006099,120]
[340832279,1729895443910,-151.0,0.0006099,120]
[340832280,1729895443919,-151.0,0.0006099,120]
[340832281,1729895443928,-151.0,0.0006099,120]
[340832282,1729895443937,-151.0,0.0006099,120]
[340832283,1729895443946,-262.955558,0.0006099,120]
[340832284,1729895443955,-262.955558,0.0006099,120]
[340832285,1729895443964,-262.955558,0.0006099,120]
[340832286,1729895443973,-262.955558,0.0006099,120]
[340832287,1729895443983,-262.955558,0.0006099,120]
[340832288,1729895443992,-262.955558,0.0006099,120]
[340832289,1729895444002,-151.0,0.0006099,120]
[340832290,1729895444011,-151.0,0.0006099,120]
[340832291,1729895444020,-151.0,0.0006099,120]
[340832292,1729895444029,-151.0,0.0006099,120]
[340832293,1729895444038,-151.0,0.0006099,120]
[340832294,1729895444047,-151.0,0.0006099,120]
[340832295,1729895444057,-151.0,0.0006099,120]
[340832296,1729895444066,-151.0,0.0006099,120]
[340832297,1729895444076,-151.0,0.0006099,120]
[340832298,1729895444086,-151.0,0.0006099,120]
[340832299,1729895444095,-219.302518,0.0006099,120]
[340832300,1729895444104,-219.302514,0.0006099,120]
[340832301,1729895444113,-630.062925,0.0006099,120]
[340832302,1729895444123,-630.062931,0.0006099,120]
[340832303,1729895444132,-851.8042737,0.0006099,7]
[340832304,1729895444142,-150.0,0.00060994,30]
[340832305,1729895444151,-150.0,0.00060995,30]
[340832306,1729895444160,-500.0,0.00060997,120]
[340832307,1729895444170,-153.502483,0.00060997,120]
[340832308,1729895444179,-683.533665,0.00060997,120]
[340832309,1729895444188,-151.0,0.00060997,30]
[340832310,1729895444197,-683.533665,0.00060997,120]
[340832311,1729895444206,-151.0,0.00060997,120]
[340832312,1729895444215,-170.082598,0.00060997,120]
[340832313,1729895444225,-170.082598,0.00060997,120]
[340832314,1729895444234,-151.0,0.00060997,120]
[340832315,1729895444244,-151.0,0.00060997,120]
[340832316,1729895444258,-151.716205,0.00060997,120]
[340832317,1729895444267,-151.0,0.00060997,120]
[340832318,1729895444277,-152.311139,0.00060997,120]
[340832319,1729895444286,-151.0,0.00060997,120]
[340832320,1729895444297,-151.0,0.00060997,120]
[340832321,1729895444306,-151.0,0.00060997,120]
[340832322,1729895444315,-500.0,0.00060997,120]
[340832323,1729895444326,-500.0,0.00060997,120]
[340832324,1729895444335,-679.15,0.00060997,120]
[340832325,1729895444345,-500.0,0.00060997,120]
[340832326,1729895444355,-500.0,0.00060997,120]
[340832327,1729895444366,-500.0,0.00060997,7]
[340832328,1729895444376,-500.0,0.00060997,120]
[340832329,1729895444385,-500.0,0.00060997,120]
[340832330,1729895444424,-503.69097015,0.00060998,120]
[340832331,1729895444434,-3606.33476441,0.00060998,120]
[340832332,1729895444444,-151.0,0.00060998,120]
[340832333,1729895444454,-154.443172,0.00060998,120]
[340832334,1729895444463,-500.0,0.00060998,120]
[340832335,1729895444472,-151.0,0.00060998,120]
[340832336,1729895444481,-500.0,0.00060998,120]
[340832337,1729895444490,-153.14201,0.00060998,120]
[340832338,1729895444500,-500.0,0.00060998,2]
[340832339,1729895444509,-500.0,0.00060998,120]
[340832340,1729895444519,-500.0,0.00060998,120]
[340832341,1729895444528,-500.0,0.00060998,120]
[340832342,1729895444537,-580.37722793,0.00060998,120]
[340832343,1729895444547,-390.8087776,0.00060998,120]
[340832344,1729895444556,-500.0,0.00060998,120]
[340832345,1729895444566,-169.3200692,0.00060998,120]
[340832346,1729895444575,-547.45194471,0.00060998,120]
[340832347,1729895444585,-500.0,0.00060998,120]
[340832348,1729895444594,-500.0,0.00060998,120]
[340832349,1729895444604,-500.0,0.00060998,120]
[340832350,1729895444613,-500.0,0.00060998,55]
[340832351,1729895444622,-500.0,0.00060998,120]
[340832352,1729895444631,-679.15,0.00060998,120]
[340832353,1729895444641,-6492.83,0.00060998,120]
[340832354,1729895444651,-500.0,0.00060998,120]
[340832355,1729895444661,-500.0,0.00060998,120]
[340832356,1729895444670,-500.0,0.00060998,120]
[340832357,1729895444680,-500.0,0.00060998,120]
[340832358,1729895444690,-500.0,0.00060998,120]
[340832359,1729895444699,-500.0,0.00060998,120]
[340832360,1729895444708,-500.0,0.00060998,120]
[340832361,1729895444717,-500.0,0.00060998,120]
[340832362,1729895444726,-500.0,0.00060998,120]
[340832363,1729895444735,-500.0,0.00060998,120]
[340832364,1729895444744,-500.0,0.00060998,21]
[340832365,1729895444753,-500.0,0.00060998,120]
[340832366,1729895444762,-500.0,0.00060998,120]
[340832367,1729895444771,-500.0,0.00060998,120]
[340832368,1729895444780,-500.0,0.00060998,120]
[340832369,1729895444789,-1061.87,0.00060998,120]
[340832370,1729895444798,-500.0,0.00060998,120]
[340832371,1729895444807,-500.0,0.00060998,120]
[340832372,1729895444817,-500.0,0.00060998,4]